bitfinex/quotes_BTCUSD_20240607
["timestamp","ask_amount","ask_price","bid_price","bid_amount"]
[1717744663792,0.4306,71294.0,71293.0,0.27368522]
[1717744664007,0.4316,71294.0,71293.0,0.27368522]
[1717744664137,0.4301,71294.0,71293.0,0.27368522]
[1717744664367,0.43002733,71294.0,71293.0,0.27368522]
[1717744664745,0.43002733,71294.0,71293.0,0.14326629]
[1717744664746,0.43102733,71294.0,71293.0,0.14326629]
[1717744664923,0.43102733,71294.0,71293.0,0.04326629]
[1717744666287,0.43102733,71294.0,71293.0,0.028946]
[1717744667758,0.43002733,71294.0,71293.0,0.028946]
[1717744667958,0.43002733,71294.0,71293.0,0.17336493]
[1717744668167,0.43102733,71294.0,71293.0,0.17336493]
[1717744668596,0.00486,71299.0,71293.0,0.17336493]
[1717744668801,0.00486,71299.0,71298.0,0.45690317]
[1717744669053,0.00486,71299.0,71298.0,0.56690317]
[1717744669675,0.00486,71299.0,71298.0,0.55690317]
[1717744669889,0.00486,71299.0,71298.0,0.56690317]
[1717744670090,0.00586,71299.0,71298.0,0.56690317]
[1717744670591,0.00586,71299.0,71298.0,0.55690317]
[1717744671022,0.00514425,71299.0,71298.0,0.55690317]
[1717744671459,0.00414425,71299.0,71298.0,0.55690317]
[1717744671873,0.00514425,71299.0,71298.0,0.57090317]
[1717744672284,0.00414425,71299.0,71298.0,0.55690317]
[1717744672709,0.00514425,71299.0,71298.0,0.58490317]
[1717744672929,0.00514425,71299.0,71298.0,0.57090317]
[1717744673152,0.00414425,71299.0,71298.0,0.55690317]
[1717744673363,0.00414425,71299.0,71298.0,0.57090317]
[1717744673559,0.00514425,71299.0,71298.0,0.57090317]
[1717744673991,0.00514425,71299.0,71298.0,0.58490317]
[1717744675004,0.00414425,71299.0,71298.0,0.57090317]
[1717744675205,0.00514425,71299.0,71298.0,0.58490317]
[1717744675442,0.00514425,71299.0,71298.0,0.51267493]
[1717744675676,0.08584425,71299.0,71298.0,0.51267493]
[1717744675834,0.08584425,71299.0,71298.0,0.49867493]
[1717744675835,0.08484425,71299.0,71298.0,0.49867493]
[1717744676271,0.08584425,71299.0,71298.0,0.49867493]
[1717744676440,0.27484425,71299.0,71298.0,0.51267493]
[1717744676645,0.27384425,71299.0,71298.0,0.48467493]
[1717744677228,0.27384425,71299.0,71298.0,0.51267493]
[1717744677229,0.27484425,71299.0,71298.0,0.51267493]
[1717744678313,0.27484425,71299.0,71298.0,0.128]
[1717744678314,0.43554425,71299.0,71298.0,0.128]
[1717744678523,0.43554425,71299.0,71298.0,0.04904396]
[1717744678748,0.43554425,71299.0,71298.0,0.37241893]
[1717744678749,0.16584425,71299.0,71298.0,0.37241893]
[1717744678957,0.16584425,71299.0,71298.0,0.39346289]
[1717744679169,0.16584425,71299.0,71298.0,0.37241893]
[1717744679367,0.16584425,71299.0,71298.0,0.34441893]
[1717744679368,0.16484425,71299.0,71298.0,0.34441893]
[1717744679568,0.16484425,71299.0,71298.0,0.48467493]
[1717744679772,0.16584425,71299.0,71298.0,0.49867493]
[1717744679994,0.16584425,71299.0,71298.0,0.51267493]
[1717744680203,0.16484425,71299.0,71298.0,0.48467493]
[1717744680443,0.16484425,71299.0,71298.0,0.49867493]
[1717744680690,0.16484425,71299.0,71298.0,0.51267493]
[1717744680691,0.16584425,71299.0,71298.0,0.51267493]
[1717744680909,0.16584425,71299.0,71298.0,0.49867493]
[1717744681118,0.16584425,71299.0,71298.0,0.51267493]
[1717744682014,0.16484425,71299.0,71298.0,0.49867493]
[1717744682228,0.16584425,71299.0,71298.0,0.51267493]
[1717744682448,0.00514425,71299.0,71298.0,0.49867493]
[1717744682694,0.00414425,71299.0,71298.0,0.48467493]
[1717744682907,0.00414425,71299.0,71298.0,0.49867493]
[1717744683147,0.00514425,71299.0,71298.0,0.49867493]
[1717744683610,0.00414425,71299.0,71298.0,0.49867493]
[1717744683847,0.00414425,71299.0,71298.0,0.48467493]
[1717744684314,0.00414425,71299.0,71298.0,0.49867493]
[1717744685049,0.00414425,71299.0,71298.0,0.51267493]
[1717744685274,0.00514425,71299.0,71298.0,0.51267493]
[1717744685503,0.00514425,71299.0,71298.0,0.49867493]
[1717744685979,0.00514425,71299.0,71298.0,0.52267493]
[1717744686193,0.00514425,71299.0,71298.0,0.60867493]
[1717744686461,0.00514425,71299.0,71298.0,0.77857493]
[1717744686678,0.00514425,71299.0,71298.0,0.96084477]
[1717744686885,0.00414425,71299.0,71298.0,1.00968936]
[1717744687092,0.00414425,71299.0,71298.0,1.18899135]
[1717744687514,0.00414425,71299.0,71298.0,1.17499135]
[1717744687726,0.00414425,71299.0,71298.0,0.99509135]
[1717744687935,0.00414425,71299.0,71298.0,1.08134477]
[1717744688163,0.00414425,71299.0,71298.0,1.09134477]
[1717744688404,0.00414425,71299.0,71298.0,1.10534477]
[1717744688827,0.00414425,71299.0,71298.0,1.10934477]
[1717744689053,0.00414425,71299.0,71298.0,1.09534477]
[1717744689256,0.00414425,71299.0,71298.0,1.10934477]
[1717744689663,0.00414425,71299.0,71298.0,1.11934477]
[1717744690121,0.00414425,71299.0,71298.0,0.95084477]
[1717744690364,0.00414425,71299.0,71298.0,0.95179077]
[1717744691190,0.00414425,71299.0,71298.0,1.01470394]
[1717744691391,0.35600021,71309.0,71308.0,0.1]
[1717744691613,0.35600021,71309.0,71308.0,0.25873922]
[1717744691788,0.35600021,71309.0,71308.0,0.35873922]
[1717744692649,0.16700021,71309.0,71308.0,0.38673922]
[1717744695711,0.16700021,71309.0,71308.0,0.28673922]
[1717744695915,0.35600021,71309.0,71308.0,0.28673922]
[1717744696327,0.43800021,71309.0,71308.0,0.18673922]
[1717744696706,0.43800021,71309.0,71308.0,0.17241893]
[1717744697343,0.24900021,71309.0,71308.0,0.17241893]
[1717744697565,0.43800021,71309.0,71308.0,0.17241893]
[1717744698187,0.35260021,71309.0,71308.0,0.41265493]
[1717744698398,0.16360021,71309.0,71308.0,0.17241893]
[1717744698614,0.16360021,71309.0,71308.0,0.19345827]
[1717744700335,0.35260021,71309.0,71308.0,0.19345827]
[1717744700498,0.16360021,71309.0,71308.0,0.19345827]
[1717744702149,0.00270021,71309.0,71308.0,0.29345827]
[1717744702298,0.00270021,71309.0,71308.0,0.27241893]
[1717744704697,0.19170021,71309.0,71308.0,0.27241893]
[1717744704917,0.35410021,71309.0,71308.0,0.17241893]
[1717744705143,0.35410021,71309.0,71308.0,0.27241893]
[1717744705351,0.35410021,71309.0,71308.0,0.17241893]
[1717744705798,0.16510021,71309.0,71308.0,0.27241893]
[1717744706765,0.35410021,71309.0,71308.0,0.27241893]
[1717744706965,0.16510021,71309.0,71308.0,0.27241893]
[1717744707370,0.35410021,71309.0,71308.0,0.27241893]
[1717744708218,0.35410021,71309.0,71308.0,0.17241893]
[1717744708792,0.35410021,71309.0,71308.0,0.27241893]
[1717744710568,0.16510021,71309.0,71308.0,0.27241893]
[1717744711864,0.35410021,71309.0,71308.0,0.34041893]
[1717744712046,0.19170021,71309.0,71308.0,0.34041893]
[1717744713135,0.00270021,71309.0,71308.0,0.34041893]
[1717744713341,0.00270021,71309.0,71308.0,0.27241893]
[1717744713556,0.19170021,71309.0,71308.0,0.27241893]
[1717744713764,0.00270021,71309.0,71308.0,0.27241893]
[1717744714360,0.19170021,71309.0,71308.0,0.27241893]
[1717744714767,0.35320021,71309.0,71308.0,0.27241893]
[1717744716594,0.35320021,71309.0,71308.0,0.17241893]
[1717744717227,0.43280021,71309.0,71308.0,0.17241893]
[1717744717640,0.52080021,71309.0,71308.0,0.17241893]
[1717744718684,0.50080021,71309.0,71308.0,0.028]
[1717744718893,0.66103421,71309.0,71308.0,0.028]
[1717744719504,0.71180797,71309.0,71308.0,0.028]
[1717744719710,0.71180797,71309.0,71308.0,0.014]
[1717744719917,0.64380797,71309.0,71308.0,0.014]
[1717744720142,0.64380797,71309.0,71298.0,0.000946]
[1717744720143,0.4295,71299.0,71298.0,0.000946]
[1717744721002,0.4495,71299.0,71298.0,0.000946]
[1717744721397,0.4295,71299.0,71298.0,0.000946]
[1717744722882,0.4295,71299.0,71298.0,0.012946]
[1717744723075,0.4295,71299.0,71298.0,0.022946]
[1717744731675,0.4495,71299.0,71298.0,0.022946]
[1717744732949,0.4295,71299.0,71298.0,0.022946]
[1717744738464,0.4495,71299.0,71298.0,0.022946]
[1717744738671,0.4295,71299.0,71298.0,0.022946]
[1717744739533,0.4495,71299.0,71298.0,0.022946]
[1717744739737,0.4295,71299.0,71298.0,0.022946]
[1717744739954,0.4975,71299.0,71298.0,0.022946]
[1717744740159,0.5175,71299.0,71298.0,0.022946]
[1717744740374,0.4295,71299.0,71298.0,0.022946]
[1717744740608,0.4975,71299.0,71298.0,0.022946]
[1717744742365,0.5175,71299.0,71298.0,0.022946]
[1717744742817,0.4975,71299.0,71298.0,0.022946]
[1717744743048,0.4295,71299.0,71298.0,0.022946]
[1717744743291,0.3085,71299.0,71298.0,0.022946]
[1717744743519,0.4975,71299.0,71298.0,0.022946]
[1717744743976,0.3085,71299.0,71298.0,0.022946]
[1717744744431,0.2405,71299.0,71298.0,0.022946]
[1717744744638,0.4975,71299.0,71298.0,0.022946]
[1717744745047,0.3085,71299.0,71298.0,0.022946]
[1717744745937,0.4975,71299.0,71298.0,0.022946]
[1717744746170,0.4295,71299.0,71298.0,0.022946]
[1717744746380,0.4975,71299.0,71298.0,0.022946]
[1717744747735,0.179,71301.0,71298.0,0.022946]
[1717744747955,0.1653,71308.0,71300.0,0.07222824]
[1717744747956,0.179,71307.0,71300.0,0.07222824]
[1717744748163,0.18256021,71309.0,71301.0,0.14441893]
[1717744748388,0.179,71307.0,71303.0,0.04193967]
[1717744748622,0.00356021,71309.0,71304.0,0.1863586]
[1717744748623,0.19256021,71309.0,71304.0,0.1863586]
[1717744748855,0.18256021,71309.0,71308.0,0.07222824]
[1717744749910,0.00356021,71309.0,71308.0,0.07222824]
[1717744750610,0.00356021,71309.0,71308.0,0.73910028]
[1717744750822,0.00356021,71309.0,71308.0,0.75310028]
[1717744751066,0.00356021,71309.0,71308.0,0.79503995]
[1717744751323,0.00356021,71309.0,71308.0,0.78103995]
[1717744751554,0.00356021,71309.0,71308.0,0.79403995]
[1717744752016,0.00356021,71309.0,71308.0,0.80803995]
[1717744752310,0.00356021,71309.0,71308.0,0.76610028]
[1717744752552,0.00356021,71309.0,71308.0,0.79403356]
[1717744753875,0.00356021,71309.0,71308.0,0.80803356]
[1717744754312,0.00356021,71309.0,71308.0,0.76610028]
[1717744754518,0.00356021,71309.0,71308.0,0.8160002]
[1717744754755,0.00356021,71309.0,71308.0,0.8300002]
[1717744754955,0.00356021,71309.0,71308.0,1.14069781]
[1717744755420,0.00356021,71309.0,71308.0,1.15069781]
[1717744755864,0.00356021,71309.0,71308.0,1.08779789]
[1717744756350,0.00356021,71309.0,71308.0,1.29092611]
[1717744756548,0.00356021,71309.0,71308.0,1.21292611]
[1717744756787,0.00356021,71309.0,71308.0,1.15003389]
[1717744757025,0.00356021,71309.0,71308.0,1.21292807]
[1717744757255,0.00356021,71309.0,71308.0,1.15003389]
[1717744757501,0.00356021,71309.0,71308.0,1.21292317]
[1717744757714,0.00356021,71309.0,71308.0,0.67362556]
[1717744757715,0.19256021,71309.0,71308.0,0.67362556]
[1717744758138,0.19256021,71309.0,71308.0,0.61073628]
[1717744758354,0.19256021,71309.0,71308.0,0.65266513]
[1717744758789,0.19256021,71309.0,71308.0,0.44020089]
[1717744759634,0.19256021,71309.0,71308.0,0.028]
[1717744759635,0.21256021,71309.0,71308.0,0.028]
[1717744759815,0.29386021,71309.0,71308.0,0.028]
[1717744760228,0.45746021,71309.0,71308.0,0.028]
[1717744766767,0.59769421,71309.0,71308.0,0.028]
[1717744767385,0.59769421,71309.0,71308.0,0.014]
[1717744767588,0.01,71299.0,71298.0,0.07317424]
[1717744767800,0.5017,71299.0,71298.0,0.000946]
[1717744768011,0.4337,71299.0,71298.0,0.000946]
[1717744768631,0.4537,71299.0,71298.0,0.000946]
[1717744769275,0.4337,71299.0,71298.0,0.000946]
[1717744770129,0.189,71299.0,71298.0,0.000946]
[1717744770960,0.189,71299.0,71298.0,0.023946]
[1717744773799,0.189,71300.0,71298.0,0.16836493]
[1717744773979,0.189,71299.0,71298.0,0.09617424]
[1717744774673,0.189,71299.0,71298.0,0.08417424]
[1717744774894,0.189,71299.0,71298.0,0.07317424]
[1717744775115,0.189,71299.0,71298.0,0.09517424]
[1717744775322,0.189,71299.0,71298.0,0.23959317]
[1717744775545,0.189,71299.0,71298.0,0.22859317]
[1717744775928,0.189,71299.0,71298.0,0.23959317]
[1717744776380,0.189,71299.0,71298.0,0.22859317]
[1717744777229,0.189,71299.0,71298.0,0.23959317]
[1717744783177,0.189,71299.0,71298.0,0.022946]
[1717744783391,0.4213,71299.0,71298.0,0.022946]
[1717744784466,0.4413,71299.0,71298.0,0.022946]
[1717744785272,0.4213,71299.0,71298.0,0.022946]
[1717744788899,0.4413,71299.0,71298.0,0.022946]
[1717744793979,0.581554,71299.0,71298.0,0.022946]
[1717744794356,0.63008139,71299.0,71298.0,0.022946]
[1717744794566,0.69808139,71299.0,71298.0,0.022946]
[1717744795212,0.69808139,71299.0,71298.0,0.011946]
[1717744795544,0.69808139,71299.0,71298.0,0.022946]
[1717744795754,0.69808139,71299.0,71298.0,0.011946]
[1717744796348,0.69808139,71299.0,71298.0,0.000946]
[1717744796587,0.69808139,71299.0,71298.0,0.012946]
[1717744797003,0.69808139,71299.0,71298.0,0.000946]
[1717744797188,0.69828128,71299.0,71298.0,0.000946]
[1717744797441,0.69928128,71299.0,71298.0,0.000946]
[1717744797913,0.70128128,71299.0,71298.0,0.000946]
[1717744798126,0.63128128,71299.0,71298.0,0.000946]
[1717744798344,0.69928128,71299.0,71298.0,0.000946]
[1717744798555,0.70128128,71299.0,71298.0,0.000946]
[1717744798953,0.652554,71299.0,71298.0,0.000946]
[1717744799162,0.649554,71299.0,71298.0,0.000946]
[1717744799378,0.69825923,71299.0,71298.0,0.000946]
[1717744799592,0.70125923,71299.0,71298.0,0.001946]
[1717744801105,0.70130211,71299.0,71298.0,0.001946]
[1717744802975,0.61330211,71299.0,71298.0,0.001946]
[1717744803211,0.38100211,71299.0,71298.0,0.001946]
[1717744803445,0.332254,71299.0,71298.0,0.001946]
[1717744803664,0.003,71299.0,71298.0,0.001946]
[1717744803883,0.191,71299.0,71298.0,0.001946]
[1717744804109,0.191,71299.0,71298.0,0.084146]
[1717744804328,0.189,71299.0,71298.0,0.083146]
[1717744804782,0.19,71299.0,71298.0,0.083146]
[1717744805649,0.189,71299.0,71298.0,0.083146]
[1717744806087,0.189,71299.0,71298.0,0.11233218]
[1717744806547,0.189,71301.0,71298.0,0.10033218]
[1717744806821,0.189,71299.0,71298.0,0.11233218]
[1717744807029,0.179,71302.0,71298.0,0.03013218]
[1717744807246,0.179,71302.0,71299.0,0.075]
[1717744807460,0.179,71302.0,71300.0,0.161]
[1717744807676,0.189,71302.0,71301.0,0.04196148]
[1717744807899,0.189,71302.0,71300.0,0.16720388]
[1717744808162,0.189,71302.0,71301.0,0.00620385]
[1717744808875,0.179,71302.0,71301.0,0.00620385]
[1717744809523,0.189,71302.0,71301.0,0.00620385]
[1717744811011,0.189,71302.0,71301.0,0.01420385]
[1717744811633,0.189,71302.0,71301.0,0.02120385]
[1717744818558,0.189,71302.0,71301.0,0.02214985]
[1717744819727,0.209,71302.0,71301.0,0.02214985]
[1717744820584,0.2847,71302.0,71301.0,0.02214985]
[1717744821043,0.5122,71302.0,71301.0,0.02214985]
[1717744821463,0.5122,71302.0,71301.0,0.015946]
[1717744822399,0.652448,71302.0,71301.0,0.015946]
[1717744823703,0.584448,71302.0,71301.0,0.015946]
[1717744823919,0.652448,71302.0,71301.0,0.015946]
[1717744825588,0.584448,71302.0,71301.0,0.015946]
[1717744825816,0.652448,71302.0,71301.0,0.015946]
[1717744826039,0.652448,71302.0,71301.0,0.02215893]
[1717744826245,0.584448,71302.0,71301.0,0.02215893]
[1717744826446,0.652448,71302.0,71301.0,0.02215893]
[1717744830327,0.632448,71302.0,71301.0,0.02215893]
[1717744830662,0.632448,71302.0,71301.0,0.015946]
[1717744831192,0.652448,71302.0,71301.0,0.015946]
[1717744833990,0.584448,71302.0,71301.0,0.015946]
[1717744834191,0.652448,71302.0,71301.0,0.015946]
[1717744839198,0.632448,71302.0,71301.0,0.015946]
[1717744839415,0.329248,71302.0,71301.0,0.015946]
[1717744839650,0.397248,71302.0,71301.0,0.015946]
[1717744839868,0.397248,71302.0,71301.0,0.02217444]
[1717744840534,0.140248,71302.0,71301.0,0.02217444]
[1717744840734,0.329248,71302.0,71301.0,0.02217444]
[1717744842718,0.189,71302.0,71301.0,0.02217444]
[1717744843132,0.189,71302.0,71301.0,0.10467444]
[1717744843963,0.189,71302.0,71301.0,0.14669649]
[1717744844199,0.189,71302.0,71301.0,0.06419649]
[1717744844430,0.209,71302.0,71301.0,0.02217444]
[1717744844669,0.189,71302.0,71301.0,0.06420182]
[1717744845091,0.189,71302.0,71301.0,0.02217444]
[1717744848253,0.189,71302.0,71301.0,0.06420182]
[1717744849203,0.189,71302.0,71301.0,0.02217444]
[1717744849332,0.189,71302.0,71301.0,0.0642364]
[1717744854764,0.189,71302.0,71301.0,0.06423814]
[1717744855870,0.189,71302.0,71301.0,0.02217444]
[1717744860193,0.189,71302.0,71301.0,0.02209228]
[1717744862296,0.189,71302.0,71301.0,0.085203]
[1717744862493,0.189,71302.0,71301.0,0.02209228]
[1717744862912,0.1509,71304.0,71301.0,0.02209228]
[1717744863112,0.189,71302.0,71301.0,0.02209228]
[1717744863540,0.189,71302.0,71301.0,0.085203]
[1717744863743,0.189,71302.0,71301.0,0.07728516]
[1717744863983,0.1509,71304.0,71301.0,0.07728516]
[1717744864195,0.3599,71304.0,71303.0,0.04207304]
[1717744864406,0.1509,71304.0,71303.0,0.04830091]
[1717744864624,0.3599,71304.0,71303.0,0.04830091]
[1717744864851,0.1509,71304.0,71303.0,0.04830091]
[1717744865245,0.3599,71304.0,71303.0,0.04830091]
[1717744865458,0.1509,71304.0,71303.0,0.04830091]
[1717744866904,0.3599,71304.0,71303.0,0.04830091]
[1717744867106,0.1509,71304.0,71303.0,0.04830091]
[1717744867319,0.3599,71304.0,71303.0,0.04830091]
[1717744867516,0.3599,71304.0,71303.0,0.05330091]
[1717744867941,0.3599,71304.0,71303.0,0.05730091]
[1717744868796,0.349244,71304.0,71303.0,0.05730091]
[1717744869019,0.82479442,71304.0,71303.0,0.01522787]
[1717744869281,0.99221335,71304.0,71303.0,0.01522787]
[1717744869779,0.99221335,71304.0,71303.0,0.009]
[1717744870438,0.99221335,71304.0,71303.0,0.004]
[1717744871049,0.549248,71302.0,71301.0,0.000946]
[1717744871276,1.07541735,71302.0,71301.0,0.000946]
[1717744871918,1.07536155,71302.0,71301.0,0.000946]
[1717744872765,1.07636155,71302.0,71301.0,0.000946]
[1717744873523,1.8645947,71302.0,71301.0,0.000946]
[1717744873751,2.2121947,71302.0,71301.0,0.000946]
[1717744873979,2.14751797,71302.0,71301.0,0.000946]
[1717744874198,2.22438031,71302.0,71301.0,0.000946]
[1717744874422,2.10545855,71302.0,71301.0,0.000946]
[1717744874656,2.10445855,71302.0,71301.0,0.000946]
[1717744874898,2.16602562,71302.0,71301.0,0.000946]
[1717744875190,2.16602562,71302.0,71301.0,0.001946]
[1717744875425,2.16902562,71302.0,71301.0,0.002946]
[1717744875607,2.10645855,71302.0,71301.0,0.001946]
[1717744876926,2.25157642,71302.0,71301.0,0.001946]
[1717744877151,2.10645855,71302.0,71301.0,0.001946]
[1717744877693,2.11345855,71302.0,71301.0,0.002946]
[1717744878774,0.9953,71299.0,71298.0,0.000946]
[1717744878978,1.25651355,71299.0,71298.0,0.000946]
[1717744879184,1.37951355,71299.0,71298.0,0.000946]
[1717744879602,2.08078355,71299.0,71298.0,0.000946]
[1717744879801,2.03198893,71299.0,71298.0,0.000946]
[1717744880017,2.08390919,71299.0,71298.0,0.001946]
[1717744880433,1.98390919,71299.0,71298.0,0.001946]
[1717744881071,1.98890919,71299.0,71298.0,0.002946]
[1717744881911,1.72090919,71299.0,71298.0,0.002946]
[1717744882123,1.78890919,71299.0,71298.0,0.002946]
[1717744882564,1.29940119,71299.0,71298.0,0.002946]
[1717744882783,1.50840119,71299.0,71298.0,0.002946]
[1717744886406,1.45948093,71299.0,71298.0,0.002946]
[1717744886606,1.5083632,71299.0,71298.0,0.002946]
[1717744887033,1.7083632,71299.0,71298.0,0.002946]
[1717744887979,1.70835095,71299.0,71298.0,0.002946]
[1717744888628,1.29935095,71299.0,71298.0,0.002946]
[1717744888867,1.50835095,71299.0,71298.0,0.002946]
[1717744889086,1.50833713,71299.0,71298.0,0.002946]
[1717744889752,1.44033713,71299.0,71298.0,0.002946]
[1717744889990,1.19273713,71299.0,71298.0,0.002946]
[1717744890235,1.26073713,71299.0,71298.0,0.002946]
[1717744890652,1.25573713,71299.0,71298.0,0.001946]
[1717744890872,1.26073713,71299.0,71298.0,0.002946]
[1717744891596,1.25573713,71299.0,71298.0,0.001946]
[1717744891813,1.26073713,71299.0,71298.0,0.002946]
[1717744892026,1.25773713,71299.0,71298.0,0.001946]
[1717744892251,1.26173713,71299.0,71298.0,0.002946]
[1717744892693,1.25773713,71299.0,71298.0,0.001946]
[1717744892902,1.25773713,71299.0,71298.0,0.002946]
[1717744893110,1.2616374,71299.0,71298.0,0.002946]
[1717744893338,1.2566374,71299.0,71298.0,0.001946]
[1717744893776,1.2616374,71299.0,71298.0,0.002946]
[1717744894683,1.26164456,71299.0,71298.0,0.002946]
[1717744899454,1.05264456,71299.0,71298.0,0.002946]
[1717744899665,1.26164456,71299.0,71298.0,0.002946]
[1717744902079,1.05264456,71299.0,71298.0,0.002946]
[1717744902498,1.26164456,71299.0,71298.0,0.002946]
[1717744902958,0.189,71274.0,71273.0,0.04194445]
[1717744903209,0.1476,71298.0,71270.0,0.04194445]
[1717744903210,0.189,71272.0,71270.0,0.04194445]
[1717744903428,0.2363,71285.0,71267.0,0.43336945]
[1717744903429,0.179,71269.0,71267.0,0.43336945]
[1717744903645,0.179,71267.0,71264.0,0.07222824]
[1717744903894,0.179,71267.0,71264.0,0.24022824]
[1717744904603,0.179,71266.0,71265.0,0.04196192]
[1717744904821,0.179,71266.0,71265.0,0.14196192]
[1717744905263,0.179,71266.0,71265.0,0.1]
[1717744905486,0.179,71274.0,71266.0,0.1]
[1717744905734,0.179,71271.0,71267.0,0.14441893]
[1717744905950,0.068,71280.0,71267.0,0.14441893]
[1717744905951,0.179,71268.0,71267.0,0.14441893]
[1717744906506,0.179,71268.0,71267.0,0.34891893]
[1717744907160,0.189,71268.0,71267.0,0.2045]
[1717744907601,0.189,71268.0,71267.0,0.2165]
[1717744907602,0.19,71268.0,71267.0,0.2165]
[1717744907802,0.19,71268.0,71267.0,0.2089]
[1717744909562,0.191,71268.0,71267.0,0.2159]
[1717744914061,0.191,71268.0,71267.0,0.216846]
[1717744914516,0.191,71268.0,71267.0,0.019946]
[1717744918359,0.589315,71268.0,71267.0,0.019946]
[1717744918787,0.66110088,71268.0,71267.0,0.019946]
[1717744919454,0.65910088,71268.0,71267.0,0.000946]
[1717744919882,0.66110088,71268.0,71267.0,0.024946]
[1717744920306,0.66110088,71268.0,71267.0,0.000946]
[1717744920511,0.72810088,71268.0,71267.0,0.001946]
[1717744920728,0.73410088,71268.0,71267.0,0.001946]
[1717744920940,0.73310088,71268.0,71267.0,0.001946]
[1717744921403,0.72710088,71268.0,71267.0,0.000946]
[1717744922465,0.72710088,71268.0,71267.0,0.001946]
[1717744922466,0.73410088,71268.0,71267.0,0.001946]
[1717744922698,0.73410088,71268.0,71267.0,0.000946]
[1717744922699,0.72710088,71268.0,71267.0,0.000946]
[1717744923140,0.74010088,71268.0,71267.0,0.002946]
[1717744923360,0.691315,71268.0,71267.0,0.002946]
[1717744923578,1.30936393,71268.0,71267.0,0.001946]
[1717744923820,1.35820872,71268.0,71267.0,0.001946]
[1717744924030,1.36520872,71268.0,71267.0,0.002946]
[1717744925352,1.29720872,71268.0,71267.0,0.002946]
[1717744925569,1.36520872,71268.0,71267.0,0.002946]
[1717744926838,1.51280872,71268.0,71267.0,0.002946]
[1717744928162,1.79343872,71268.0,71267.0,0.002946]
[1717744930116,2.19343872,71268.0,71267.0,0.002946]
[1717744932040,2.25603193,71268.0,71267.0,0.002946]
[1717744932956,2.24903193,71268.0,71267.0,0.001946]
[1717744933199,2.25603193,71268.0,71267.0,0.001946]
[1717744933434,2.25403193,71268.0,71267.0,0.001946]
[1717744933672,2.19143872,71268.0,71267.0,0.001946]
[1717744933900,2.20543872,71268.0,71267.0,0.002946]
[1717744934152,2.19443872,71268.0,71267.0,0.001946]
[1717744934616,2.20843872,71268.0,71267.0,0.002946]
[1717744936247,2.30843872,71268.0,71267.0,0.002946]
[1717744936479,2.45355659,71268.0,71267.0,0.002946]
[1717744937179,2.30843872,71268.0,71267.0,0.002946]
[1717744939402,1.110635,71262.0,71261.0,0.004]
[1717744939674,1.77529872,71262.0,71261.0,0.004]
[1717744940600,1.7753498,71262.0,71261.0,0.004]
[1717744940814,1.7843498,71262.0,71261.0,0.005]
[1717744941050,1.7983498,71262.0,71261.0,0.006]
[1717744941278,1.7893498,71262.0,71261.0,0.005]
[1717744941507,1.93446767,71262.0,71261.0,0.005]
[1717744942372,1.93447297,71262.0,71261.0,0.005]
[1717744942586,1.7893551,71262.0,71261.0,0.005]
[1717744943064,1.8033551,71262.0,71261.0,0.005]
[1717744945552,1.80337145,71262.0,71261.0,0.005]
[1717744947509,1.80337145,71262.0,71261.0,0.005946]
[1717744951718,1.82058555,71262.0,71261.0,0.005946]
[1717744952552,1.8712991,71262.0,71261.0,0.005946]
[1717744952764,1.6712991,71262.0,71261.0,0.005946]
[1717744952967,0.9422451,71262.0,71261.0,0.005946]
[1717744953168,0.85131745,71262.0,71261.0,0.005946]
[1717744953409,0.36166345,71262.0,71261.0,0.005946]
[1717744953628,0.61866345,71262.0,71261.0,0.213146]
[1717744954286,0.46624452,71262.0,71261.0,0.212146]
[1717744954503,0.47224452,71262.0,71261.0,0.163446]
[1717744954704,0.47924452,71262.0,71261.0,0.163446]
[1717744954909,0.47903945,71262.0,71261.0,0.163446]
[1717744955109,0.47303945,71262.0,71261.0,0.004946]
[1717744955974,0.46603945,71262.0,71261.0,0.004946]
[1717744956411,0.47903945,71262.0,71261.0,0.004946]
[1717744956612,0.49003945,71262.0,71261.0,0.004946]
[1717744958972,0.47003945,71262.0,71261.0,0.004946]
[1717744959190,0.47006259,71262.0,71261.0,0.004946]
[1717744959405,0.47006259,71262.0,71261.0,0.216646]
[1717744962431,0.28106259,71262.0,71261.0,0.216646]
[1717744963891,0.47006259,71262.0,71261.0,0.216646]
[1717744964112,0.49006259,71262.0,71261.0,0.216646]
[1717744964334,0.441327,71262.0,71261.0,0.167946]
[1717744964567,0.373327,71262.0,71261.0,0.004946]
[1717744964792,0.48996861,71262.0,71261.0,0.004946]
[1717744966810,0.93804154,71262.0,71261.0,0.004946]
[1717744973040,0.40196861,71262.0,71261.0,0.213346]
[1717744973266,0.353327,71262.0,71261.0,0.213346]
[1717744974136,0.329327,71262.0,71261.0,0.213346]
[1717744974548,0.342327,71262.0,71261.0,0.213346]
[1717744974780,0.335327,71262.0,71261.0,0.213346]
[1717744975641,0.329327,71262.0,71261.0,0.213346]
[1717744976105,0.336327,71262.0,71261.0,0.213346]
[1717744977237,0.343327,71262.0,71261.0,0.213346]
[1717744978720,0.193,71262.0,71261.0,0.213346]
[1717744979384,0.203,71262.0,71261.0,0.213346]
[1717744980481,0.196,71262.0,71261.0,0.213346]
[1717744980690,0.196,71262.0,71261.0,0.215346]
[1717744981183,0.196,71262.0,71261.0,0.213346]
[1717744981420,0.189,71262.0,71261.0,0.213346]
[1717744981634,0.189,71262.0,71261.0,0.215346]
[1717744983369,0.329327,71262.0,71261.0,0.215346]
[1717744989120,0.179,71262.0,71261.0,0.283346]
[1717744989330,0.179,71264.0,71261.0,0.215346]
[1717744989539,0.189,71263.0,71262.0,0.2053]
[1717744991301,0.00086,71267.0,71261.0,0.004946]
[1717744991302,0.329327,71262.0,71261.0,0.004946]
[1717744993839,0.329327,71262.0,71261.0,0.006946]
[1717744994295,0.329327,71262.0,71261.0,0.055646]
[1717744998223,0.329327,71262.0,71261.0,0.053646]
[1717744998612,0.329327,71262.0,71261.0,0.055646]
[1717744999360,0.329327,71262.0,71261.0,0.053646]
[1717744999814,0.140327,71262.0,71261.0,0.053646]
[1717745000683,0.140327,71262.0,71261.0,0.055646]